bitfinex-derivatives/quotes_BNBF0:USTF0_20250128
["timestamp","ask_amount","ask_price","bid_price","bid_amount"]
[1738099894190,0.27570273,667.37,665.52,1.12119965]
[1738099894389,0.27570273,667.36,665.52,1.12119965]
[1738099894590,0.27570273,667.35,665.52,1.12119965]
[1738099894891,0.27570273,667.34,665.52,1.12119965]
[1738099895092,1.56596281,667.42,665.52,1.12119965]
[1738099896186,0.29967036,667.4,665.52,1.12119965]
[1738099897084,0.27590584,667.39,665.52,1.12119965]
[1738099897289,0.27590584,667.38,665.52,1.12119965]
[1738099897486,0.27590584,667.37,664.92,1.12119965]
[1738099897790,0.27590584,667.36,664.92,1.12119965]
[1738099897990,0.27592206,667.35,664.94,0.30077901]
[1738099898192,0.27592206,667.34,664.94,0.30077901]
[1738099898490,0.27592206,667.33,664.94,0.30077901]
[1738099898691,0.27592206,667.32,664.94,0.30077901]
[1738099898994,0.27592206,667.31,664.94,0.30077901]
[1738099899290,0.27592206,667.3,664.94,0.30077901]
[1738099899490,0.27592206,667.29,664.94,0.30077901]
[1738099899691,0.27591262,667.28,664.94,0.30077901]
[1738099899990,0.27591262,667.27,664.94,0.30077901]
[1738099900187,0.27591262,667.26,664.94,0.30077901]
[1738099900392,0.27591262,667.25,664.94,0.30077901]
[1738099900592,0.27591262,667.24,664.94,0.30077901]
[1738099900788,0.27591262,667.23,664.94,0.30077901]
[1738099900992,0.27591262,667.22,664.94,0.30077901]
[1738099901192,0.27591262,667.31,664.94,0.30077901]
[1738099901394,0.27591262,667.3,664.94,0.30077901]
[1738099901589,0.27591262,667.29,664.94,0.30077901]
[1738099901794,0.27591262,667.31,664.94,0.30077901]
[1738099902095,0.27591262,667.3,664.94,0.30077901]
[1738099902293,0.27591262,667.31,664.94,0.30077901]
[1738099902495,0.27591262,667.3,664.94,0.30077901]
[1738099902793,0.27591262,667.29,664.94,0.30077901]
[1738099902994,0.29972874,667.27,664.94,0.30077901]
[1738099903190,0.27588689,667.26,664.94,0.30077901]
[1738099903894,0.29974222,667.24,664.94,0.30077901]
[1738099904197,0.27588689,667.23,664.94,0.30077901]
[1738099904392,0.29975569,667.21,664.94,0.30077901]
[1738099904593,0.27588689,667.2,664.94,0.30077901]
[1738099904797,0.29976917,667.18,664.94,0.30077901]
[1738099905098,0.27588689,667.17,664.94,0.30077901]
[1738099905297,0.29978265,667.15,664.94,0.30077901]
[1738099905497,0.27588689,667.14,664.94,0.30077901]
[1738099905696,0.29979613,667.12,664.94,0.30077901]
[1738099905889,0.27588689,667.11,664.94,0.30077901]
[1738099906096,0.29980962,667.09,664.94,0.30077901]
[1738099906291,0.27588689,667.08,664.94,0.30077901]
[1738099906496,0.2998231,667.06,664.94,0.30077901]
[1738099906693,0.27588689,667.05,664.94,0.30077901]
[1738099906897,0.27588689,667.04,664.94,0.30077901]
[1738099907198,0.27588689,667.03,664.94,0.30077901]
[1738099907394,0.27588689,667.02,664.94,0.30077901]
[1738099907602,0.27588689,667.01,664.94,0.30077901]
[1738099907899,0.57573696,667.0,664.94,0.30077901]
[1738099908094,0.29985457,666.99,664.94,0.30077901]
[1738099908299,0.27589655,666.98,664.94,0.30077901]
[1738099908500,0.57576011,666.97,664.94,0.30077901]
[1738099908802,0.27589655,666.96,664.94,0.30077901]
[1738099909100,0.27589655,666.95,664.94,0.30077901]
[1738099909300,0.29991752,666.85,664.94,0.30077901]
[1738099909603,0.27589655,666.84,664.94,0.30077901]
[1738099909796,1.56809733,666.95,664.94,0.30077901]
[1738099909797,0.29993101,666.82,664.94,0.30077901]
[1738099910095,0.27605096,666.81,664.94,0.30077901]
[1738099910301,0.27605096,666.8,664.94,0.30077901]
[1738099910499,0.299949,666.78,664.94,0.30077901]
[1738099910695,0.27605096,666.77,664.94,0.30077901]
[1738099910897,0.2999625,666.75,664.94,0.30077901]
[1738099911094,0.27605096,666.74,664.94,0.30077901]
[1738099911295,0.299976,666.72,664.94,0.30077901]
[1738099911495,0.27605096,666.71,664.94,0.30077901]
[1738099911698,0.27605096,666.7,664.94,0.30077901]
[1738099911897,0.299994,666.68,664.94,0.30077901]
[1738099912400,0.27605096,666.67,664.94,0.30077901]
[1738099912599,0.27605096,666.66,664.94,0.30077901]
[1738099912801,0.300012,666.64,664.94,0.30077901]
[1738099913202,0.27606042,666.63,664.94,0.30077901]
[1738099913496,0.27606042,666.62,664.94,0.30077901]
[1738099913697,0.27606042,666.61,664.94,0.30077901]
[1738099913902,0.57609042,666.6,664.94,0.30077901]
[1738099914095,0.57609492,666.59,664.94,0.30077901]
[1738099914297,0.57609942,666.58,664.94,0.30077901]
[1738099914504,0.57610392,666.57,664.94,0.30077901]
[1738099914700,0.57610842,666.56,664.94,0.30077901]
[1738099915001,0.57611292,666.55,664.94,0.30077901]
[1738099915301,0.57611743,666.54,664.94,0.30077901]
[1738099915501,1.56809733,666.95,664.94,0.30077901]
[1738099915502,0.57612193,666.53,664.94,0.30077901]
[1738099915702,0.57612643,666.52,664.94,0.30077901]
[1738099915903,0.57613093,666.51,664.94,0.30077901]
[1738099916100,0.57613543,666.5,664.94,0.30077901]
[1738099916301,0.57613994,666.49,664.94,0.30077901]
[1738099916502,0.576142,666.48,664.94,0.30077901]
[1738099916696,1.56809733,666.95,664.94,0.30077901]
[1738099916697,0.5761465,666.47,664.94,0.30077901]
[1738099916902,0.576151,666.46,664.94,0.30077901]
[1738099917105,0.57615551,666.45,664.94,0.30077901]
[1738099917298,0.27605798,666.44,664.94,0.30077901]
[1738099917602,0.27605798,666.43,664.94,0.30077901]
[1738099917803,0.27605798,666.42,664.94,0.30077901]
[1738099918002,0.27605798,666.41,664.94,0.30077901]
[1738099918203,0.27605798,666.4,664.94,0.30077901]
[1738099918402,0.27605798,666.39,664.94,0.30077901]
[1738099918602,0.27605798,666.38,664.94,0.30077901]
[1738099918802,0.27605798,666.44,664.94,0.30077901]
[1738099918998,0.27605798,666.43,664.94,0.30077901]
[1738099919198,0.27605798,666.42,664.94,0.30077901]
[1738099919401,0.27605798,666.41,664.94,0.30077901]
[1738099919600,0.27605798,666.4,664.94,0.30077901]
[1738099919801,1.56848016,666.42,664.94,0.30077901]
[1738099919802,0.27605798,666.39,664.94,0.30077901]
[1738099920006,0.27605798,666.38,664.94,0.30077901]
[1738099920205,0.27605798,666.37,664.94,0.30077901]
[1738099920405,0.27605798,666.41,664.94,0.30077901]
[1738099920606,0.27605798,666.4,664.94,0.30077901]
[1738099920905,0.27605798,666.39,664.94,0.30077901]
[1738099921101,0.27605798,666.41,664.94,0.30077901]
[1738099921306,0.27605798,666.4,664.94,0.30077901]
[1738099921606,0.27605798,666.39,664.94,0.30077901]
[1738099921800,0.27605798,666.41,664.94,0.30077901]
[1738099922706,0.27605798,666.4,664.94,0.30077901]
[1738099923007,0.27605798,666.39,664.94,0.30077901]
[1738099923205,0.27605798,666.41,664.94,0.30077901]
[1738099923505,0.27605798,666.4,664.94,0.30077901]
[1738099923707,0.27605798,666.39,664.94,0.30077901]
[1738099923906,0.27605798,666.38,664.94,0.30077901]
[1738099924104,0.27605798,666.37,664.94,0.30077901]
[1738099924306,0.27605798,666.36,664.94,0.30077901]
[1738099924506,0.27605798,666.35,664.94,0.30077901]
[1738099924706,0.27605798,666.41,664.94,0.30077901]
[1738099924901,0.27605798,666.4,664.94,0.30077901]
[1738099925102,0.27605798,666.41,664.94,0.30077901]
[1738099925306,0.27605798,666.4,664.94,0.30077901]
[1738099925610,0.27605798,666.39,664.94,0.30077901]
[1738099925807,0.27605798,666.41,664.94,0.30077901]
[1738099926006,0.27603892,666.4,664.94,0.30077901]
[1738099926203,0.27603892,666.41,664.94,0.30077901]
[1738099926405,0.27603892,666.4,664.94,0.30077901]
[1738099926607,0.27603892,666.39,664.94,0.30077901]
[1738099926909,0.27603892,666.38,664.94,0.30077901]
[1738099927102,0.27603892,666.37,664.94,0.30077901]
[1738099927302,0.27603892,666.36,664.94,0.30077901]
[1738099927506,0.27603892,666.35,664.94,0.30077901]
[1738099927709,0.27603892,666.34,664.94,0.30077901]
[1738099928111,1.56848016,666.42,664.94,0.30077901]
[1738099930213,0.27604117,666.41,664.94,0.30077901]
[1738099930416,0.27604117,666.4,664.95,1.12119965]
[1738099930718,0.27604117,666.39,664.96,0.30076997]
[1738099930915,0.27604117,666.38,664.96,0.30076997]
[1738099931215,0.27604117,666.37,664.96,0.30076997]
[1738099931412,0.27604117,666.36,664.96,0.30076997]
[1738099931616,0.27604117,666.35,664.96,0.30076997]
[1738099931813,0.27604117,666.34,664.96,0.30076997]
[1738099932011,0.27604117,666.33,664.96,0.30076997]
[1738099932214,0.27604117,666.32,664.96,0.30076997]
[1738099932415,0.27604117,666.31,664.96,0.30076997]
[1738099932612,0.27604117,666.41,664.96,0.30076997]
[1738099932819,0.27604117,666.4,664.96,0.30076997]
[1738099933118,0.27604117,666.39,664.96,0.30076997]
[1738099933318,0.27604117,666.38,664.96,0.30076997]
[1738099933515,0.27604117,666.37,664.96,0.30076997]
[1738099933713,0.27604117,666.36,664.96,0.30076997]
[1738099933917,0.27604117,666.35,664.96,0.30076997]
[1738099934117,0.27604117,666.34,664.96,0.30076997]
[1738099934320,0.27604117,666.41,664.96,0.30076997]
[1738099934514,0.27604117,666.4,664.96,0.30076997]
[1738099934716,0.27603282,666.39,664.96,0.30076997]
[1738099934918,0.27603282,666.38,664.96,0.30076997]
[1738099935219,0.27603282,666.37,664.96,0.30076997]
[1738099935519,0.27603282,666.36,664.96,0.30076997]
[1738099935821,1.56848016,666.42,664.96,0.30076997]
[1738099936018,0.2760157,666.41,664.96,0.30076997]
[1738099939521,1.56848016,666.42,664.96,0.30076997]
[1738099939721,0.27604681,666.41,664.96,0.30076997]
[1738099943027,0.27604681,666.41,664.98,1.12119965]
[1738099943225,0.27604681,666.41,664.99,0.3007564]
[1738099945829,0.27604681,666.41,665.25,1.12119965]
[1738099947329,0.30012004,666.4,665.25,1.12119965]
[1738099947529,0.27604681,666.39,665.25,1.12119965]
[1738099947734,0.57617136,666.39,665.25,1.12119965]
[1738099947927,0.27604681,666.38,665.25,1.12119965]
[1738099948230,1.12228753,666.33,665.13,1.12119965]
[1738099948430,0.27604681,666.32,665.13,1.12119965]
[1738099948824,1.56815033,666.31,665.13,1.12119965]
[1738099949130,0.27604681,666.3,665.13,1.12119965]
[1738099950328,1.39833434,666.3,665.14,1.12119965]
[1738099950532,0.27604681,666.29,665.14,1.12119965]
[1738099951633,0.3001741,666.28,665.14,1.12119965]
[1738099951833,0.27604681,666.27,665.14,1.12119965]
[1738099953836,1.12228753,666.24,664.99,0.3007564]
[1738099954037,0.27604681,666.23,664.99,0.3007564]
[1738099955135,0.30020113,666.22,664.99,0.3007564]
[1738099955330,0.27604681,666.21,664.99,0.3007564]
[1738099955835,0.30021014,666.2,664.99,0.3007564]
[1738099956036,0.27604681,666.19,664.99,0.3007564]
[1738099959038,1.56868048,666.18,664.99,0.3007564]
[1738099959239,0.27604681,666.17,664.99,0.3007564]
[1738099960542,1.56868048,666.18,664.99,0.3007564]
[1738099965542,0.57639834,666.17,664.99,0.3007564]
[1738099965742,1.56868048,666.18,664.99,0.3007564]
[1738099965743,0.57640285,666.16,664.99,0.3007564]
[1738099966036,0.57640736,666.15,664.99,0.3007564]
[1738099966242,0.30023268,666.15,664.99,0.3007564]
[1738099967743,0.27618851,666.14,664.99,0.3007564]
[1738099969040,0.276203,666.13,664.99,0.3007564]
[1738099969245,0.276203,666.12,664.99,0.3007564]
[1738099969445,0.276203,666.11,664.99,0.3007564]
[1738099969640,0.30025521,666.1,664.99,0.3007564]
[1738099969838,1.86918912,666.1,664.99,0.3007564]
[1738099970446,0.27620161,666.09,664.99,0.3007564]
[1738099970646,1.86918912,666.1,664.99,0.3007564]
[1738099970841,0.30025972,666.09,664.99,0.3007564]
[1738099972549,0.27615316,666.08,664.99,0.3007564]
[1738099973048,0.30025972,666.09,664.99,0.3007564]
[1738099975245,0.27617565,666.08,664.99,0.3007564]
[1738099978852,0.2761775,666.07,664.99,0.3007564]
[1738099979149,0.30025972,666.09,664.99,0.3007564]
[1738099979150,0.2761775,666.06,664.99,0.3007564]
[1738099979345,0.2761775,666.08,664.99,0.3007564]
[1738099979558,0.2761775,666.07,664.99,0.3007564]
[1738099979755,0.2761775,666.08,664.99,0.3007564]
[1738099980049,0.2761775,666.07,664.99,0.3007564]
[1738099980249,0.2761775,666.06,664.99,0.3007564]
[1738099980544,0.27617096,666.05,664.99,0.3007564]
[1738099980745,0.27617096,666.04,664.99,0.3007564]
[1738099981150,0.27617096,666.03,664.99,0.3007564]
[1738099981350,0.30025972,666.09,664.99,0.3007564]
[1738099981850,0.27618713,666.08,664.99,0.3007564]
[1738099983353,0.27619409,666.07,664.99,0.3007564]
[1738099983652,0.27619409,666.06,664.99,0.3007564]
[1738099983852,0.27619409,666.05,664.99,0.3007564]
[1738099984047,0.27619409,666.04,664.99,0.3007564]
[1738099984246,0.27619409,666.03,664.99,0.3007564]
[1738099984452,0.27619409,666.02,664.99,0.3007564]
[1738099984746,0.27619409,666.01,664.99,0.3007564]
[1738099984954,0.27619409,666.0,664.99,0.3007564]
[1738099985152,0.27619409,665.99,664.99,0.3007564]
[1738099985453,0.27619409,665.98,664.99,0.3007564]
[1738099985653,0.27619409,666.05,664.99,0.3007564]
[1738099985849,0.27619409,666.04,664.99,0.3007564]
[1738099986050,0.27619409,666.03,664.99,0.3007564]
[1738099986248,0.27619409,666.05,664.99,0.3007564]
[1738099986448,0.27619409,666.04,664.99,0.3007564]
[1738099986651,0.27619409,666.03,664.99,0.3007564]
[1738099986852,0.27619409,666.02,664.99,0.3007564]
[1738099987048,1.56879834,666.06,664.99,0.3007564]
[1738099988958,2.69108587,666.06,664.99,0.3007564]
[1738099992757,1.56879834,666.06,664.99,0.3007564]
[1738099994157,1.86907158,666.06,664.99,0.3007564]
[1738099995255,0.30027775,666.05,664.99,0.3007564]
[1738099995850,0.27624876,666.04,664.99,0.3007564]
[1738099996050,0.30028677,666.03,664.99,0.3007564]
[1738099996254,0.27624876,666.02,664.99,0.3007564]
[1738099996455,0.57654426,666.01,664.74,1.12119965]
[1738099996754,0.27624847,666.0,664.74,1.12119965]
[1738099996952,0.57654877,666.0,664.74,1.12119965]
[1738099997152,0.27624847,665.99,664.74,1.12119965]
[1738099997350,0.57655327,665.99,664.74,1.12119965]
[1738099997551,0.27624847,665.98,664.74,1.12119965]
[1738099997757,0.57655778,665.98,664.74,1.12119965]
[1738099997950,0.27624847,665.97,664.74,1.12119965]
[1738099998258,1.12228753,665.89,664.88,1.12119965]
[1738099998454,0.27624847,665.88,664.88,1.12119965]
[1738099999555,1.12228753,665.89,664.88,1.12119965]
[1738100001060,0.30030931,665.98,664.92,1.12119965]
[1738100001061,1.12228753,665.97,664.92,1.12119965]
[1738100004765,0.30030931,665.98,664.83,1.12119965]
[1738100006760,0.30030931,665.98,664.87,1.12119965]
[1738100008357,0.30030931,665.98,664.87,1.42201033]
[1738100009459,0.30030931,665.98,664.91,1.12119965]
[1738100014865,1.86907819,665.98,664.91,1.12119965]
[1738100015166,0.27619337,665.97,664.91,1.12119965]
[1738100015960,0.27619337,665.97,664.9,1.12119965]
[1738100017867,1.86907819,665.98,664.9,1.12119965]
[1738100018065,0.30030931,665.98,664.9,1.12119965]
[1738100020867,0.30030931,665.98,664.9,1.42199676]
[1738100021468,0.30030931,665.98,664.97,1.12119965]
[1738100025275,0.30030931,665.98,664.9,0.30079711]
[1738100034282,0.30030931,665.98,664.99,1.12119965]
[1738100035383,0.27616791,665.97,664.99,1.12119965]
[1738100036889,0.30030931,665.98,664.99,1.12119965]
[1738100037482,0.30030931,665.98,664.9,0.30079711]
[1738100037483,0.30030931,665.98,665.1,1.12119965]
[1738100040887,0.30030931,665.98,665.04,1.12119965]
[1738100043790,0.30030931,665.98,664.93,1.12119965]
[1738100046695,0.30030931,665.98,664.9,0.30079711]
[1738100046990,1.86907229,665.98,664.9,0.30079711]
[1738100050397,1.86907229,665.98,664.91,1.12119965]
[1738100053391,0.2762577,665.97,664.91,1.12119965]
[1738100053593,0.2762577,665.97,664.9,0.30079711]
[1738100053991,0.2762577,665.97,664.74,1.12119965]
[1738100054698,0.30031833,665.96,664.74,1.12119965]
[1738100054898,0.2762577,665.95,664.74,1.12119965]
[1738100055097,0.30032735,665.94,664.74,1.12119965]
[1738100055299,0.2762577,665.93,664.74,1.12119965]
[1738100055599,0.30033637,665.92,664.74,1.12119965]
[1738100055894,0.2762577,665.91,664.74,1.12119965]
[1738100056098,0.27628548,665.9,664.74,1.12119965]
[1738100056298,0.27628548,665.9,663.95,2.1325673]
[1738100056299,0.27628548,665.89,664.52,1.12119965]
[1738100056493,0.27628548,665.91,664.53,0.30096459]
[1738100056693,0.27628548,665.9,664.53,0.30096459]
[1738100056897,0.27628548,665.91,664.53,0.30096459]
[1738100057195,0.27628548,665.9,664.53,0.30096459]
[1738100057396,0.27628548,665.89,664.53,0.30096459]
[1738100059398,0.30035441,665.88,664.53,0.30096459]
[1738100059595,0.27628548,665.87,664.53,0.30096459]
[1738100059801,0.27628548,665.87,664.56,1.12119965]
[1738100060902,0.30035441,665.88,664.56,1.12119965]
[1738100061102,0.2762995,665.87,664.56,1.12119965]
[1738100063201,0.2762995,665.87,664.53,0.30096459]
[1738100065909,0.30035892,665.87,664.53,0.30096459]
[1738100066110,0.27630542,665.86,664.53,0.30096459]
[1738100066504,0.57666885,665.86,664.53,0.30096459]
[1738100066704,0.57667337,665.85,664.53,0.30096459]
[1738100067010,0.57667788,665.84,664.53,0.30096459]
[1738100067209,0.57668239,665.83,664.53,0.30096459]
[1738100067404,0.5766869,665.82,664.53,0.30096459]
[1738100067611,2.14623408,665.82,664.53,0.30096459]
[1738100067909,0.27630542,665.81,664.53,0.30096459]
[1738100070511,1.86992866,665.82,664.53,0.30096459]
[1738100073616,0.27634705,665.81,664.53,0.30096459]
[1738100074214,0.2763519,665.8,664.53,0.30096459]
[1738100074416,0.2763519,665.79,664.53,0.30096459]
[1738100074615,0.2763519,665.81,664.53,0.30096459]
[1738100074915,0.2763519,665.8,664.53,0.30096459]
[1738100075113,0.2763519,665.81,664.53,0.30096459]
[1738100075310,0.2763519,665.8,664.53,0.30096459]
[1738100075509,0.2763519,665.81,664.53,0.30096459]
[1738100075814,0.2763519,665.8,664.53,0.30096459]
[1738100076015,0.2763519,665.79,664.53,0.30096459]
[1738100076314,0.27635473,665.78,664.53,0.30096459]
[1738100076617,0.27635473,665.77,664.53,0.30096459]
[1738100076814,0.27635473,665.81,664.53,0.30096459]
[1738100077016,0.27635473,665.8,664.53,0.30096459]
[1738100077211,0.27635473,665.81,664.53,0.30096459]
[1738100077516,1.86992866,665.82,664.53,0.30096459]
[1738100077716,0.2763486,665.81,664.53,0.30096459]
[1738100079217,0.27635754,665.8,664.53,0.30096459]
[1738100079415,0.27635754,665.79,664.53,0.30096459]
[1738100079617,0.27635754,665.78,664.53,0.30096459]
[1738100079813,0.27635754,665.81,664.53,0.30096459]
[1738100080017,0.27635754,665.8,664.53,0.30096459]
[1738100080318,0.27635754,665.79,664.53,0.30096459]
[1738100080519,0.27635754,665.78,664.53,0.30096459]
[1738100080719,0.27635754,665.81,664.53,0.30096459]
[1738100080919,0.27635754,665.8,664.53,0.30096459]
[1738100081221,1.86992866,665.82,664.53,0.30096459]
[1738100081222,0.27635754,665.79,664.53,0.30096459]
[1738100081419,0.27635754,665.78,664.53,0.30096459]
[1738100081718,0.27635754,665.77,664.53,0.30096459]
[1738100081920,0.27635754,665.81,664.53,0.30096459]
[1738100082114,0.27635754,665.8,664.53,0.30096459]
[1738100082317,0.27635754,665.79,664.53,0.30096459]
[1738100082518,0.27636784,665.78,664.53,0.30096459]
[1738100082814,0.27636784,665.77,664.53,0.30096459]
[1738100083119,0.27636784,665.76,664.53,0.30096459]
[1738100083519,0.27636784,665.75,664.53,0.30096459]
[1738100083712,0.27636784,665.74,664.53,0.30096459]
[1738100087524,0.27636571,665.73,664.53,0.30096459]
[1738100087723,0.27636571,665.74,664.53,0.30096459]
[1738100087923,0.27636571,665.73,664.53,0.30096459]
[1738100088119,0.27636571,665.72,664.53,0.30096459]
[1738100088320,1.56978908,665.75,664.53,0.30096459]
[1738100088321,0.27636571,665.71,664.53,0.30096459]
[1738100088517,0.27636571,665.7,664.53,0.30096459]
[1738100088722,0.27636571,665.69,664.53,0.30096459]
[1738100088923,0.27636571,665.74,664.53,0.30096459]
[1738100089123,0.27636571,665.73,664.53,0.30096459]
[1738100089326,0.27636571,665.74,664.53,0.30096459]
[1738100089624,0.27636571,665.73,664.53,0.30096459]
[1738100089827,0.27636571,665.72,664.53,0.30096459]
[1738100090021,0.27636571,665.71,664.53,0.30096459]
[1738100090224,0.27636571,665.74,664.53,0.30096459]
[1738100090420,0.27636571,665.73,664.53,0.30096459]
[1738100090620,0.27636571,665.74,664.53,0.30096459]
[1738100090825,0.27636571,665.73,664.53,0.30096459]
[1738100091026,0.27636571,665.74,664.53,0.30096459]
[1738100091220,0.27636571,665.73,664.53,0.30096459]
[1738100091419,1.56978908,665.75,664.53,0.30096459]
[1738100091420,0.27636571,665.74,664.53,0.30096459]
[1738100091624,0.27636571,665.73,664.53,0.30096459]
[1738100091824,0.27636571,665.72,664.53,0.30096459]
[1738100092027,0.27636571,665.74,664.53,0.30096459]
[1738100092329,1.56978908,665.75,664.53,0.30096459]
[1738100092524,0.27637099,665.74,664.53,0.30096459]
[1738100094025,1.56978908,665.75,664.53,0.30096459]
[1738100094219,0.27637315,665.74,664.53,0.30096459]
[1738100095327,1.12228753,665.71,664.53,0.30096459]
[1738100095528,0.27637315,665.7,664.53,0.30096459]
[1738100098926,1.12228753,665.64,664.53,0.30096459]
[1738100099131,0.27637315,665.63,664.53,0.30096459]
[1738100099531,1.56977138,665.62,664.53,0.30096459]
[1738100099731,0.27637315,665.61,664.53,0.30096459]
[1738100101829,1.56977138,665.62,664.53,0.30096459]
[1738100102031,0.27637341,665.61,664.53,0.30096459]
[1738100102234,1.12228753,665.6,664.54,1.12119965]
[1738100104335,1.56954718,665.79,664.58,1.12119965]
[1738100104728,0.27631466,665.78,664.58,1.12119965]
[1738100105332,0.27632879,665.77,664.58,1.12119965]
[1738100105533,0.27632879,665.76,664.58,1.12119965]
[1738100105735,0.27632879,665.78,664.58,1.12119965]
[1738100105933,0.57672832,665.78,664.58,1.12119965]
[1738100106134,0.27632879,665.77,664.58,1.12119965]
[1738100107336,0.27632879,665.77,664.53,1.42216424]
[1738100108040,0.57673283,665.77,664.53,1.42216424]
[1738100108336,0.27632879,665.76,664.53,1.42216424]
[1738100111033,0.30040404,665.77,664.53,1.42216424]
[1738100111233,0.27633635,665.76,664.53,1.42216424]
[1738100113534,0.30040404,665.77,664.53,1.42216424]
[1738100113735,0.27633146,665.76,664.53,1.42216424]
[1738100113937,0.27633146,665.76,664.53,0.30096459]
[1738100116440,0.27633146,665.76,664.58,1.12119965]
[1738100119040,0.27633146,665.76,664.54,1.12119965]
[1738100121241,0.30040404,665.77,664.54,1.12119965]
[1738100121443,0.27629201,665.76,664.54,1.12119965]
[1738100122042,0.30040404,665.77,664.54,1.12119965]
[1738100122245,0.30040404,665.77,664.59,1.12119965]
[1738100125545,0.30040404,665.77,664.55,1.12119965]
[1738100129151,0.30040404,665.77,664.53,0.30096459]
[1738100136151,0.30040404,665.77,664.58,1.12119965]
[1738100136349,0.30040404,665.77,664.59,0.30093742]
[1738100139356,0.2762934,665.76,664.59,0.30093742]
[1738100139660,0.2762934,665.76,664.63,1.12119965]
[1738100139958,0.30040404,665.77,664.63,1.12119965]
[1738100141157,0.30039953,665.78,664.63,1.12119965]
[1738100143062,0.30039953,665.78,664.59,0.30093742]
[1738100143262,0.27634182,665.77,664.59,0.30093742]
[1738100143561,0.30040855,665.76,664.59,0.30093742]
[1738100143754,0.27634182,665.75,664.59,0.30093742]
[1738100144159,0.30041758,665.74,664.59,0.30093742]
[1738100144357,0.27634182,665.73,664.59,0.30093742]
[1738100144662,0.3004266,665.72,664.59,0.30093742]
[1738100144863,0.27634182,665.71,664.59,0.30093742]
[1738100145558,1.87015077,665.72,664.59,0.30093742]
[1738100145757,0.27637364,665.71,664.59,0.30093742]
[1738100147363,0.27639183,665.7,664.59,0.30093742]
[1738100147562,0.27639183,665.71,664.59,0.30093742]
[1738100147763,0.27639183,665.7,664.59,0.30093742]
[1738100147958,0.27639183,665.71,664.59,0.30093742]
[1738100148163,0.27639183,665.7,664.59,0.30093742]
[1738100148363,0.30044014,665.69,664.59,0.30093742]
[1738100148662,0.27639183,665.68,664.59,0.30093742]
[1738100148866,0.30044917,665.67,664.59,0.30093742]
[1738100149064,0.27640266,665.66,664.59,0.30093742]
[1738100150558,0.30045819,665.65,664.59,0.30093742]
[1738100150762,0.27640266,665.64,664.59,0.30093742]
[1738100151258,0.30045819,665.65,664.59,0.30093742]
[1738100151464,0.27645402,665.64,664.26,1.12119965]
[1738100151660,0.27645402,665.64,664.2,1.12119965]
[1738100153367,0.27650042,665.63,664.2,1.12119965]
[1738100153566,0.27650042,665.62,664.2,1.12119965]
[1738100153866,0.27650042,665.61,664.2,1.12119965]
[1738100154067,0.27650042,665.64,664.2,1.12119965]
[1738100154366,0.30045819,665.65,664.2,1.12119965]
[1738100154967,0.30045819,665.65,664.2,1.42231377]
[1738100155163,0.30045819,665.65,664.2,0.30111412]
[1738100155466,1.8464503,665.64,664.2,0.30111412]
[1738100155862,1.57003696,665.64,664.2,0.30111412]
[1738100156261,0.27639741,665.63,664.2,0.30111412]
[1738100156867,1.57003696,665.64,664.2,0.30111412]
[1738100157063,0.27637844,665.63,664.2,0.30111412]
[1738100157265,1.57003696,665.64,664.2,0.30111412]
[1738100157665,0.2763486,665.63,664.2,0.30111412]
[1738100158068,1.57003696,665.64,664.2,0.30111412]
[1738100158763,0.2763588,665.63,664.2,0.30111412]
[1738100158964,1.57003696,665.64,664.2,0.30111412]
[1738100159170,0.27636339,665.63,664.2,0.30111412]
[1738100160066,1.57003696,665.64,664.2,0.30111412]
[1738100160670,0.27638413,665.63,664.2,0.30111412]
[1738100160872,1.57003696,665.64,664.2,0.30111412]
[1738100161069,0.27637981,665.63,664.2,0.30111412]
[1738100162064,1.84646989,665.62,664.2,0.30111412]
[1738100162270,0.27637981,665.61,664.2,0.30111412]
[1738100164071,1.57009008,665.62,664.2,0.30111412]
[1738100164372,0.27640032,665.61,664.2,0.30111412]
[1738100165672,1.57009008,665.62,664.2,0.30111412]
[1738100165873,0.2763887,665.61,664.2,0.30111412]
[1738100166172,1.57009008,665.62,664.2,0.30111412]
[1738100166973,0.2763917,665.61,664.2,0.30111412]
[1738100167473,1.57009008,665.62,664.2,0.30111412]
[1738100167871,0.27638292,665.61,664.2,0.30111412]
[1738100168372,1.57009008,665.62,664.2,0.30111412]
[1738100169371,0.27638689,665.61,664.2,0.30111412]
[1738100170875,0.27638797,665.6,664.2,0.30111412]
[1738100171075,0.27638797,665.61,664.2,0.30111412]
[1738100171275,0.27638716,665.6,664.2,0.30111412]
[1738100171579,0.27638716,665.59,664.2,0.30111412]
[1738100171775,0.27638716,665.58,664.2,0.30111412]
[1738100171976,0.27638716,665.57,664.2,0.30111412]
[1738100172177,0.27638716,665.61,664.2,0.30111412]
[1738100172378,1.57009008,665.62,664.2,0.30111412]
[1738100172379,0.27638716,665.6,664.2,0.30111412]
[1738100172576,0.27638716,665.59,664.2,0.30111412]
[1738100172776,1.57009008,665.62,664.2,0.30111412]
[1738100172777,0.27638716,665.58,664.32,1.12119965]
[1738100172977,0.27638716,665.61,664.32,1.12119965]
[1738100174577,0.30045819,665.65,664.32,1.12119965]
[1738100174778,0.2763516,665.64,664.33,0.30105519]
[1738100175776,0.30045819,665.65,664.33,0.30105519]
[1738100175973,0.27637094,665.64,664.33,0.30105519]